bitfinex/quotes_BTCUSD_20250505
["timestamp","ask_amount","ask_price","bid_price","bid_amount"]
[1746407050947,0.55071929,94913.0,94912.0,0.00011539]
[1746407051557,0.55071929,94913.0,94912.0,0.00311539]
[1746407052092,0.55071929,94913.0,94912.0,0.00011539]
[1746407052442,0.55071929,94913.0,94912.0,0.00211539]
[1746407053854,0.55071929,94913.0,94912.0,0.00011539]
[1746407054125,0.55071929,94913.0,94912.0,0.00211539]
[1746407061364,0.60051929,94913.0,94912.0,0.00211539]
[1746407061571,0.75323958,94913.0,94912.0,0.00211539]
[1746407062446,0.75323958,94913.0,94912.0,0.00011539]
[1746407063434,0.77919592,94913.0,94912.0,0.00011539]
[1746407063749,0.8064651,94913.0,94912.0,0.00111539]
[1746407063874,0.8064651,94913.0,94912.0,0.00011539]
[1746407064072,0.8074651,94913.0,94912.0,0.00011539]
[1746407064704,0.59586592,94892.0,94873.0,0.13382964]
[1746407064927,0.59586592,94892.0,94891.0,0.00545875]
[1746407065128,0.59586592,94892.0,94891.0,0.00145657]
[1746407093356,0.55080591,94874.0,94873.0,0.08402964]
[1746407093531,0.55080591,94874.0,94873.0,0.08407515]
[1746407093736,0.55080591,94874.0,94873.0,0.08887164]
[1746407094215,0.56117127,94874.0,94873.0,0.08887164]
[1746407094617,0.56117127,94874.0,94873.0,0.09287164]
[1746407094816,0.35036536,94874.0,94873.0,0.39597977]
[1746407095133,0.35036536,94874.0,94873.0,0.19971249]
[1746407096617,0.35036536,94874.0,94873.0,0.11568285]
[1746407100083,0.35036536,94874.0,94873.0,0.52398285]
[1746407111619,0.35036536,94874.0,94873.0,0.47788285]
[1746407112065,0.45588565,94874.0,94873.0,0.417142]
[1746407112270,0.35036536,94874.0,94873.0,0.417142]
[1746407118827,0.35036536,94874.0,94873.0,0.413142]
[1746407119030,0.35036536,94874.0,94873.0,0.416142]
[1746407122129,0.39766536,94874.0,94873.0,0.416142]
[1746407126077,0.39766536,94874.0,94873.0,0.007842]
[1746407126425,0.39766536,94874.0,94873.0,0.00304551]
[1746407127699,0.39766536,94874.0,94873.0,4.551e-05]
[1746407128452,0.50029088,94874.0,94873.0,4.551e-05]
[1746407128655,0.60581117,94874.0,94873.0,4.551e-05]
[1746407128883,0.57985483,94874.0,94873.0,4.551e-05]
[1746407129298,0.60581117,94874.0,94873.0,4.551e-05]
[1746407130079,0.57854199,94874.0,94873.0,4.551e-05]
[1746407130275,0.55258565,94874.0,94873.0,4.551e-05]
[1746407130718,0.55080813,94873.0,94871.0,1e-08]
[1746407130934,0.46099996,94872.0,94871.0,5.64e-06]
[1746407131103,0.45836408,94872.0,94871.0,5.64e-06]
[1746407131309,0.50356408,94872.0,94871.0,5.64e-06]
[1746407131841,0.52952042,94872.0,94871.0,5.64e-06]
[1746407132230,0.57952042,94872.0,94871.0,5.64e-06]
[1746407132423,0.58052042,94872.0,94871.0,5.64e-06]
[1746407132628,0.62233045,94872.0,94871.0,5.64e-06]
[1746407132800,0.5508548,94852.0,94851.0,0.001]
[1746407133002,0.74917509,94852.0,94851.0,0.00104566]
[1746407133206,0.74917509,94852.0,94851.0,0.00602964]
[1746407133412,0.74917509,94852.0,94851.0,0.00104566]
[1746407134016,0.6436548,94852.0,94851.0,0.00104566]
[1746407134684,0.6436548,94852.0,94851.0,0.00404566]
[1746407134973,0.6436548,94852.0,94851.0,0.00104566]
[1746407135175,0.6436548,94852.0,94851.0,0.00304566]
[1746407135935,0.6436548,94852.0,94851.0,0.00104566]
[1746407136139,0.74917509,94852.0,94851.0,0.00204566]
[1746407140389,0.6436548,94852.0,94851.0,0.00204566]
[1746407143528,0.5508548,94852.0,94851.0,0.00204566]
[1746407155084,0.2213945,94854.0,94851.0,0.00204566]
[1746407155267,0.2213945,94854.0,94852.0,0.0499]
[1746407155606,0.2213945,94854.0,94853.0,0.00502493]
[1746407155806,0.5613945,94854.0,94853.0,0.00502493]
[1746407156827,0.5613945,94854.0,94853.0,0.01002493]
[1746407157429,0.21081808,94869.0,94853.0,0.43286578]
[1746407157631,0.01054151,94863.0,94857.0,0.01054218]
[1746407157837,0.01054174,94861.0,94857.0,0.01054218]
[1746407158073,0.01054174,94861.0,94858.0,0.00525202]
[1746407158391,0.01652799,94861.0,94858.0,0.00525202]
[1746407158602,0.02706973,94861.0,94858.0,0.00525202]
[1746407159561,0.21083702,94860.0,94858.0,0.00525202]
[1746407159794,0.22137887,94860.0,94856.0,0.01054229]
[1746407159999,0.22137887,94860.0,94859.0,0.00525202]
[1746407160219,0.22137887,94860.0,94857.0,0.01054218]
[1746407160396,0.22137887,94860.0,94859.0,0.00525202]
[1746407160602,0.22137887,94860.0,94856.0,0.01054229]
[1746407160603,0.01054185,94860.0,94856.0,0.01054229]
[1746407160958,0.22138035,94860.0,94856.0,0.004]
[1746407161172,0.01054196,94859.0,94857.0,0.00525202]
[1746407161344,0.01054196,94859.0,94855.0,0.0589424]
[1746407161697,0.01054196,94859.0,94856.0,0.00513081]
[1746407163618,0.01054196,94859.0,94856.0,0.00913081]
[1746407163762,0.01054196,94859.0,94856.0,0.00513081]
[1746407164118,0.01054196,94859.0,94856.0,0.00913081]
[1746407166980,0.21084146,94858.0,94856.0,0.00913081]
[1746407167189,0.01054196,94859.0,94856.0,0.00913081]
[1746407167985,0.01054196,94859.0,94856.0,0.00513081]
[1746407168199,0.01054196,94859.0,94856.0,0.00913081]
[1746407168347,0.01054185,94860.0,94856.0,0.00913081]
[1746407168569,0.01054196,94859.0,94856.0,0.00513081]
[1746407168768,0.22138338,94859.0,94856.0,0.00513081]
[1746407168972,0.21084356,94858.0,94856.0,0.00513081]
[1746407169875,0.21084356,94858.0,94856.0,0.00913081]
[1746407170136,0.23060525,94858.0,94856.0,0.00513081]
[1746407170338,0.23060525,94858.0,94856.0,0.00913081]
[1746407171342,0.21084356,94858.0,94856.0,0.00913081]
[1746407171640,0.28101803,94858.0,94856.0,0.00913081]
[1746407171835,0.21084356,94858.0,94856.0,0.00913081]
[1746407172067,0.21084356,94858.0,94856.0,0.004]
[1746407174390,0.01977091,94857.0,94856.0,0.004]
[1746407175747,0.01054251,94854.0,94851.0,0.00104566]
[1746407175951,0.01977091,94853.0,94851.0,0.00104566]
[1746407176354,0.40839329,94852.0,94851.0,0.00104566]
[1746407176576,0.4281642,94852.0,94851.0,0.00104566]
[1746407176945,0.4731642,94852.0,94851.0,0.00104566]
[1746407177164,0.4731642,94852.0,94851.0,0.00604566]
[1746407177369,0.4731642,94852.0,94851.0,0.00104566]
[1746407177567,0.35977091,94852.0,94851.0,0.00104566]
[1746407177783,0.35977091,94852.0,94851.0,0.00504566]
[1746407178976,0.35977091,94852.0,94851.0,0.00104566]
[1746407179203,0.35977091,94852.0,94851.0,0.00304566]
[1746407179660,0.4652912,94852.0,94851.0,0.00304566]
[1746407179859,0.5108912,94852.0,94851.0,0.00304566]
[1746407180546,0.5561912,94852.0,94851.0,0.00304566]
[1746407180698,0.45067091,94852.0,94851.0,0.00304566]
[1746407182042,0.45067091,94852.0,94851.0,0.00104566]
[1746407182668,0.4365,94838.0,94837.0,0.3334736]
[1746407182878,0.45627091,94838.0,94837.0,0.33351925]
[1746407183175,0.5617912,94838.0,94837.0,0.33864066]
[1746407183377,0.5617912,94838.0,94837.0,0.00516706]
[1746407183517,0.5617912,94838.0,94837.0,4.565e-05]
[1746407184091,0.5617912,94838.0,94837.0,0.00104565]
[1746407185222,0.45627091,94838.0,94837.0,0.00104565]
[1746407186963,0.45627091,94838.0,94837.0,4.565e-05]
[1746407187330,0.45627091,94838.0,94837.0,0.00104565]
[1746407188999,0.45627091,94838.0,94837.0,4.565e-05]
[1746407189197,0.45627091,94838.0,94837.0,0.00104565]
[1746407189508,0.47280449,94838.0,94837.0,0.00104565]
[1746407189852,0.57832478,94838.0,94837.0,0.00104565]
[1746407190208,0.55092818,94819.0,94818.0,0.08376543]
[1746407190468,0.55092818,94819.0,94818.0,0.08381107]
[1746407190800,0.56746251,94819.0,94818.0,0.08381107]
[1746407192023,0.56746251,94819.0,94818.0,4.564e-05]
[1746407192379,0.56746251,94819.0,94818.0,0.00404564]
[1746407195494,0.6729828,94819.0,94818.0,0.00404564]
[1746407195654,0.56746251,94819.0,94818.0,0.00404564]
[1746407196061,0.55092818,94819.0,94818.0,0.00404564]
[1746407197402,0.21091276,94826.0,94819.0,0.01454085]
[1746407197612,0.01054607,94822.0,94821.0,0.01454085]
[1746407198029,0.01054607,94822.0,94821.0,0.00563798]
[1746407198250,0.05694821,94822.0,94821.0,0.00563798]
[1746407198483,0.22146992,94821.0,94818.0,4.564e-05]
[1746407199134,0.23800339,94821.0,94818.0,4.564e-05]
[1746407199346,0.23800339,94821.0,94819.0,0.00557772]
[1746407199599,0.23800339,94821.0,94818.0,4.564e-05]
[1746407199933,0.23800339,94821.0,94818.0,0.00404564]
[1746407200610,0.55092818,94819.0,94818.0,0.00404564]
[1746407201110,0.57067048,94819.0,94818.0,4.564e-05]
[1746407201968,0.57067048,94819.0,94818.0,0.00404564]
[1746407211448,0.55094376,94812.0,94801.0,0.01054841]
[1746407211663,0.55094376,94812.0,94811.0,0.00108675]
[1746407211866,0.57068606,94812.0,94811.0,0.00108675]
[1746407212557,0.57068606,94812.0,94811.0,0.00708675]
[1746407214614,0.67205094,94812.0,94811.0,0.00708675]
[1746407216217,0.68858585,94812.0,94811.0,0.00708675]
[1746407216416,0.67205094,94812.0,94811.0,0.00708675]
[1746407216943,0.67205094,94812.0,94811.0,0.00108675]
[1746407217171,0.67205094,94812.0,94811.0,0.00508675]
[1746407217765,0.76715094,94812.0,94811.0,0.00508675]
[1746407217905,0.55096823,94801.0,94800.0,0.00407]
[1746407218101,0.59596823,94801.0,94800.0,0.00407]
[1746407218656,0.61571053,94801.0,94800.0,0.00407]
[1746407219373,0.63225065,94801.0,94800.0,0.00407]
[1746407220117,0.63325065,94801.0,94800.0,0.00407]
[1746407220640,0.73877094,94801.0,94800.0,0.00407]
[1746407222239,0.63325065,94801.0,94800.0,0.00407]
[1746407222713,0.61350835,94801.0,94800.0,0.00407]
[1746407224790,0.63321881,94801.0,94800.0,0.00407]
[1746407226201,0.61667869,94801.0,94800.0,0.00407]
[1746407226566,0.59696823,94801.0,94800.0,0.00407]
[1746407227878,0.70096695,94801.0,94800.0,0.00407]
[1746407229349,0.71750789,94801.0,94800.0,0.00407]
[1746407229558,0.21103056,94773.0,94772.0,0.39682907]
[1746407229874,0.21103056,94773.0,94772.0,0.40301203]
[1746407230671,0.22757271,94773.0,94772.0,0.40801203]
[1746407231884,0.56757271,94773.0,94772.0,0.40801203]
[1746407234683,0.58724322,94773.0,94772.0,0.40801203]
[1746407235989,0.58724322,94773.0,94772.0,0.40301203]
[1746407236199,0.57070107,94773.0,94772.0,0.40601203]
[1746407236396,0.55103056,94773.0,94772.0,0.40601203]
[1746407237699,0.57069717,94773.0,94772.0,0.40601203]
[1746407238631,0.67621746,94773.0,94772.0,0.40601203]
[1746407238760,0.65655085,94773.0,94772.0,0.40601203]
[1746407239348,0.67309363,94773.0,94772.0,0.40601203]
[1746407239551,0.56757334,94773.0,94772.0,0.38646925]
[1746407239810,0.56757334,94773.0,94772.0,0.38746925]
[1746407240100,0.56757334,94773.0,94772.0,0.38646925]
[1746407240307,0.56757334,94773.0,94772.0,0.38746925]
[1746407240930,0.56757334,94773.0,94772.0,0.43736925]
[1746407242595,0.35654278,94773.0,94772.0,0.43736925]
[1746407246025,0.34,94773.0,94772.0,0.43736925]
[1746407249193,0.35654266,94773.0,94772.0,0.43736925]
[1746407251081,0.35654266,94773.0,94772.0,0.38746925]
[1746407255607,0.46206295,94773.0,94772.0,0.38746925]
[1746407256159,0.44552029,94773.0,94772.0,0.38746925]
[1746407256855,0.34,94773.0,94772.0,0.38746925]
[1746407257579,0.3876,94773.0,94772.0,0.38746925]
[1746407258153,0.3876,94773.0,94772.0,0.38646925]
[1746407258547,0.3876,94773.0,94772.0,0.00618296]
[1746407258954,0.3876,94773.0,94772.0,0.00045699]
[1746407259169,0.49177719,94773.0,94772.0,0.00045699]
[1746407259397,0.50832055,94773.0,94772.0,0.00045699]
[1746407260511,0.40514336,94773.0,94772.0,0.00045699]
[1746407261748,0.40214336,94773.0,94772.0,0.00045699]
[1746407262256,0.40114336,94773.0,94772.0,0.00045699]
[1746407262498,0.44834336,94773.0,94772.0,0.00045699]
[1746407263339,0.44734336,94773.0,94772.0,0.00045699]
[1746407263540,0.55486365,94773.0,94772.0,0.00045699]
[1746407264289,0.44934336,94773.0,94772.0,0.00045699]
[1746407265251,0.44734336,94773.0,94772.0,0.00045699]
[1746407266148,0.64777733,94752.0,94751.0,0.001]
[1746407266307,0.64777733,94752.0,94751.0,0.00104568]
[1746407266910,0.75329762,94752.0,94751.0,0.00104568]
[1746407268244,0.64777733,94752.0,94751.0,0.00104568]
[1746407269225,0.66432612,94752.0,94751.0,0.00104568]
[1746407272224,0.66406233,94752.0,94751.0,0.00104568]
[1746407273869,0.56736233,94752.0,94751.0,0.00104568]
[1746407274349,0.22736233,94752.0,94751.0,0.00104568]
[1746407275898,0.21081354,94752.0,94751.0,0.00104568]
[1746407276958,0.21081354,94752.0,94751.0,0.38133197]
[1746407277319,0.21081354,94752.0,94751.0,0.38763809]
[1746407279186,0.22736007,94752.0,94751.0,0.38763809]
[1746407280560,0.01654653,94752.0,94751.0,0.38763809]
[1746407280797,0.03625426,94752.0,94751.0,0.64621765]
[1746407281459,0.01654653,94752.0,94751.0,0.64621765]
[1746407282793,0.01654653,94752.0,94751.0,0.43513809]
[1746407283578,0.01654653,94752.0,94751.0,0.83513809]
[1746407285899,0.22762386,94752.0,94751.0,0.43513809]
[1746407286299,0.21107733,94752.0,94751.0,0.38763809]
[1746407286695,0.23078506,94752.0,94751.0,0.38763809]
[1746407289721,0.21107733,94752.0,94751.0,0.38763809]
[1746407290738,0.22762401,94752.0,94751.0,0.38763809]
[1746407294959,0.22762401,94752.0,94751.0,0.42745737]
[1746407295098,0.01654668,94752.0,94751.0,0.38763809]
[1746407295915,0.21107532,94753.0,94751.0,0.38763809]
[1746407297979,0.01973842,94752.0,94751.0,0.38763809]
[1746407298807,0.21107532,94753.0,94751.0,0.38763809]
[1746407299004,0.01974344,94752.0,94751.0,0.38763809]
[1746407299525,0.01974344,94752.0,94751.0,0.37109127]
[1746407302553,0.21107532,94753.0,94751.0,0.37109127]
[1746407303758,0.01977032,94752.0,94751.0,0.37109127]
[1746407304624,0.21107532,94753.0,94751.0,0.37109127]
[1746407305659,0.01977644,94752.0,94751.0,0.37109127]
[1746407309595,0.03632326,94752.0,94751.0,0.37109127]
[1746407311984,0.52829867,94752.0,94751.0,0.37109127]
[1746407312293,0.52829867,94752.0,94751.0,0.00630612]
[1746407312633,0.0468,94742.0,94740.0,0.0142237]
[1746407312835,0.34,94741.0,94740.0,0.01436088]
[1746407313046,0.35977644,94741.0,94740.0,0.01436088]
[1746407313245,0.44733415,94741.0,94740.0,0.01436088]
[1746407314643,0.37632519,94741.0,94740.0,0.01436088]
[1746407316084,0.35654875,94741.0,94740.0,0.01436088]
[1746407316293,0.34,94741.0,94740.0,0.01436088]
[1746407318059,0.3597439,94741.0,94740.0,0.01436088]
[1746407318803,0.34,94741.0,94740.0,0.01436088]
[1746407319402,0.34,94741.0,94740.0,0.41436088]
[1746407319756,0.35654822,94741.0,94740.0,0.41975938]
[1746407321548,0.46206851,94741.0,94740.0,0.01975938]
[1746407321893,0.35654822,94741.0,94740.0,0.01436088]
[1746407322368,0.37627872,94741.0,94740.0,0.01436088]
[1746407326192,0.3597305,94741.0,94740.0,0.01436088]
[1746407328830,0.0197305,94741.0,94740.0,0.01436088]
[1746407329562,0.03627847,94741.0,94740.0,0.01436088]
[1746407332356,0.42451727,94741.0,94740.0,0.01436088]
[1746407332513,0.42187847,94741.0,94740.0,0.01436088]
[1746407333424,0.55112858,94729.0,94728.0,0.36359698]
[1746407333818,0.57085908,94729.0,94728.0,0.3689484]
[1746407334051,0.03628032,94729.0,94728.0,0.3689484]
[1746407334249,0.2276784,94729.0,94728.0,0.3689484]
[1746407334705,0.2276784,94729.0,94728.0,0.36359698]
[1746407334881,0.2276784,94729.0,94728.0,0.36897812]
[1746407335304,0.24741436,94729.0,94728.0,0.36897812]
[1746407335756,0.24741436,94729.0,94728.0,0.42717823]
[1746407335757,0.03628578,94729.0,94728.0,0.42717823]
[1746407335969,0.03628578,94729.0,94728.0,0.43051897]
[1746407336170,0.01973596,94729.0,94728.0,0.47551897]
[1746407336287,0.21108,94751.0,94748.0,0.047]
[1746407336490,0.21108,94751.0,94749.0,0.34923324]
[1746407336491,0.22163397,94751.0,94749.0,0.34923324]
[1746407339592,0.23818033,94751.0,94749.0,0.34923324]
[1746407340711,0.23818033,94751.0,94750.0,0.34386102]
[1746407341026,0.23818033,94751.0,94750.0,0.34915097]
[1746407345210,0.57818033,94751.0,94750.0,0.34915097]
[1746407345371,0.69713375,94751.0,94750.0,0.34915097]
[1746407345580,0.67618033,94751.0,94750.0,0.00528995]
[1746407345779,0.67618033,94751.0,94731.0,0.34386102]
[1746407345780,0.5998219,94732.0,94731.0,0.33260308]
[1746407347577,0.5511219,94732.0,94731.0,0.33260308]
[1746407347828,0.5511219,94732.0,94731.0,0.33360308]
[1746407349058,0.5676718,94732.0,94731.0,0.33360308]
[1746407353339,0.5676718,94732.0,94731.0,0.33787861]
[1746407354528,0.56755258,94732.0,94731.0,0.33787861]
[1746407356307,0.55100268,94732.0,94731.0,0.33787861]
[1746407356584,0.74752297,94732.0,94731.0,0.33787861]
[1746407356779,0.64200268,94732.0,94731.0,0.33687861]
[1746407356933,0.64200268,94732.0,94731.0,0.33787861]
[1746407358025,0.64200268,94732.0,94731.0,0.00527553]
[1746407358518,0.64200268,94732.0,94731.0,0.001]
[1746407358717,0.74752297,94732.0,94731.0,0.001]
[1746407359406,0.55116202,94714.0,94713.0,0.33260308]
[1746407359624,0.55116202,94714.0,94713.0,0.31220931]
[1746407359785,0.55116202,94714.0,94713.0,0.31690324]
[1746407360508,0.55116202,94714.0,94713.0,0.31790324]
[1746407360750,0.56771552,94714.0,94713.0,0.31790324]
[1746407367507,0.56771552,94714.0,94713.0,0.31794324]
[1746407367706,0.0165535,94714.0,94713.0,0.36437841]
[1746407367913,0.01055787,94716.0,94713.0,0.33248409]
[1746407368118,0.3496076,94718.0,94713.0,0.33248409]
[1746407368338,0.22171323,94717.0,94713.0,0.33248409]
[1746407368545,0.01055787,94716.0,94713.0,0.33248409]
[1746407368742,0.21115979,94715.0,94713.0,0.33248409]
[1746407369190,0.21115979,94715.0,94713.0,0.33148409]
[1746407369393,0.21115979,94715.0,94713.0,0.33448409]
[1746407369887,0.21115979,94715.0,94714.0,0.31216362]
[1746407370102,0.01055787,94716.0,94714.0,0.31216362]
[1746407370260,0.22171323,94717.0,94715.0,0.01454085]
[1746407370464,0.01055732,94721.0,94717.0,0.01454085]
[1746407370715,0.01055743,94720.0,94717.0,0.02509861]
[1746407370921,0.01055743,94720.0,94718.0,0.00484301]
[1746407373493,0.01055743,94720.0,94718.0,0.00684301]
[1746407375797,0.01055743,94720.0,94719.0,0.31216362]
[1746407376408,0.01055743,94720.0,94719.0,0.31700663]
[1746407376836,0.01055743,94720.0,94719.0,0.31900663]
[1746407379084,0.0105562,94731.0,94727.0,0.0250975]
[1746407379332,0.22167799,94732.0,94729.0,0.01454085]
[1746407379531,0.22167799,94732.0,94730.0,0.00466314]
[1746407379783,0.01055609,94732.0,94730.0,0.00466314]
[1746407382160,0.0271067,94733.0,94731.0,0.22566498]
[1746407382161,0.01655072,94733.0,94731.0,0.22566498]
[1746407382588,0.01655072,94733.0,94732.0,0.01920399]
[1746407384059,0.01655072,94733.0,94732.0,0.43322133]
[1746407384303,0.01655072,94733.0,94732.0,0.48242133]
[1746407385315,0.01655072,94733.0,94732.0,0.73242133]
[1746407385538,0.01655072,94733.0,94732.0,0.73142133]
[1746407385765,0.01655072,94733.0,94732.0,1.13342133]
[1746407387469,0.01655072,94733.0,94732.0,1.03156761]
[1746407387698,0.22163087,94753.0,94748.0,0.01055431]
[1746407387929,0.01055386,94752.0,94749.0,0.31216362]
[1746407388157,0.35055353,94755.0,94750.0,0.01055408]
[1746407388405,0.01055364,94754.0,94751.0,0.32271759]
[1746407388856,0.01055364,94754.0,94752.0,0.00444602]
[1746407389284,0.002,94753.0,94752.0,0.00444602]
[1746407389707,0.01055364,94754.0,94752.0,0.00444602]
[1746407390032,0.01355364,94754.0,94752.0,0.00444602]
[1746407390653,0.02710011,94754.0,94752.0,0.00444602]
[1746407390898,0.001,94753.0,94752.0,0.00444602]
[1746407391122,0.001,94753.0,94752.0,0.40925013]
[1746407391617,0.001,94753.0,94752.0,0.33115049]
[1746407392100,0.01654647,94754.0,94753.0,0.22561596]
[1746407392618,0.01754647,94754.0,94753.0,0.23002116]
[1746407392818,0.01654647,94754.0,94753.0,0.23002116]
[1746407393329,0.01654647,94754.0,94753.0,0.48002116]
[1746407393533,0.01654647,94754.0,94753.0,0.58554145]
[1746407394029,0.01654647,94754.0,94753.0,0.58654145]
[1746407394183,0.01654647,94754.0,94753.0,0.48102116]
[1746407395117,0.01654647,94754.0,94753.0,0.48002116]
[1746407395494,0.01654647,94754.0,94753.0,0.88302116]
[1746407396280,0.01055275,94762.0,94759.0,0.01454085]
[1746407396485,0.0001105,94762.0,94760.0,0.01055297]
[1746407396890,0.0001105,94762.0,94761.0,0.0044052]
[1746407397295,0.0001105,94762.0,94760.0,0.01055297]
[1746407397494,0.0001105,94762.0,94761.0,0.0044052]
[1746407397818,0.0001105,94762.0,94760.0,0.01055297]
[1746407398047,0.0001105,94762.0,94761.0,0.0044052]
[1746407398452,0.0001105,94762.0,94760.0,0.01055297]
[1746407398639,0.0001105,94762.0,94761.0,0.0044052]
[1746407399044,0.0001105,94762.0,94760.0,0.01055297]
[1746407399303,0.60791839,94762.0,94761.0,0.0054052]
[1746407399552,0.21107065,94755.0,94754.0,0.23885947]
[1746407400224,0.21107065,94755.0,94753.0,0.31216362]
[1746407401594,0.21107065,94755.0,94754.0,0.002]
[1746407402304,0.21107065,94755.0,94754.0,0.31216362]
[1746407403177,0.21107065,94755.0,94754.0,0.31416362]
[1746407412171,0.0463105,94762.0,94755.0,0.01454085]
[1746407412387,0.01066325,94762.0,94755.0,0.01454085]
[1746407412590,0.01055308,94759.0,94755.0,0.01454085]
[1746407412791,0.01055319,94758.0,94755.0,0.01454085]
[1746407413090,0.2110662,94757.0,94755.0,0.01454085]
[1746407413960,0.2110662,94757.0,94756.0,0.32670447]
[1746407415337,0.2110662,94757.0,94756.0,0.32870447]
[1746407419284,0.22761207,94757.0,94756.0,0.32870447]
[1746407420055,0.66121207,94757.0,94756.0,0.31416362]
[1746407420261,0.66121207,94757.0,94756.0,0.002]
[1746407420937,0.66121207,94757.0,94737.0,0.31216362]
[1746407420938,0.55110853,94738.0,94737.0,0.31216362]
[1746407421746,0.56765798,94738.0,94737.0,0.31216362]
[1746407422343,0.56765798,94738.0,94737.0,0.31516362]
[1746407423468,0.56765798,94738.0,94737.0,0.31216362]
[1746407423902,0.56765798,94738.0,94737.0,0.31416362]
[1746407424307,0.56765798,94738.0,94737.0,0.31216362]
[1746407424684,0.56765798,94738.0,94737.0,0.31416362]
[1746407426449,0.55110853,94738.0,94737.0,0.32870447]
[1746407427421,0.34,94738.0,94737.0,0.32870447]
[1746407427649,0.55110853,94738.0,94737.0,0.32870447]
[1746407429023,0.21110853,94738.0,94737.0,0.32870447]
[1746407429350,0.22765755,94738.0,94737.0,0.32870447]
[1746407429552,0.01654902,94738.0,94737.0,0.32870447]
[1746407435354,0.01654902,94738.0,94737.0,0.72870447]
[1746407436358,0.3505542,94749.0,94745.0,0.01454085]
[1746407436775,0.3505542,94749.0,94745.0,0.02509549]
[1746407436979,0.0105542,94749.0,94747.0,0.01454085]
[1746407437382,0.0105542,94749.0,94748.0,0.32670447]
[1746407437991,0.26803822,94749.0,94748.0,0.32670447]
[1746407439394,0.28458625,94749.0,94748.0,0.32870447]
[1746407439897,0.33148625,94749.0,94748.0,0.32870447]
[1746407442598,0.28458625,94749.0,94748.0,0.32870447]
[1746407443221,0.23818625,94749.0,94748.0,0.32870447]
[1746407446136,0.56163822,94749.0,94748.0,0.32870447]
[1746407447155,0.05865286,94761.0,94755.0,0.01055353]
[1746407447354,0.01055319,94758.0,94755.0,0.01055353]
[1746407447747,0.2110662,94757.0,94756.0,0.32670447]
[1746407448768,0.2110662,94757.0,94756.0,0.72670447]
[1746407449257,0.22761241,94757.0,94756.0,0.72670447]
[1746407449682,0.22761241,94757.0,94756.0,0.72870447]
[1746407452316,0.01654621,94757.0,94756.0,0.72870447]
[1746407453427,0.01654621,94757.0,94756.0,0.32870447]
[1746407453973,0.01654621,94757.0,94756.0,0.72870447]
[1746407455974,0.01055319,94758.0,94756.0,0.72870447]
[1746407456975,0.01055319,94758.0,94756.0,0.32870447]
[1746407457499,0.01055319,94758.0,94756.0,0.72670447]
[1746407457934,0.01055319,94758.0,94756.0,0.72870447]
[1746407459973,0.22161933,94758.0,94756.0,0.72870447]
[1746407461816,0.01055319,94758.0,94756.0,0.72870447]
[1746407463895,0.01055319,94758.0,94756.0,0.32870447]
[1746407464521,0.01055319,94758.0,94756.0,0.72870447]
[1746407466026,0.0271003,94758.0,94756.0,0.72870447]
[1746407466230,0.01055319,94758.0,94756.0,0.72870447]
[1746407469197,0.02709932,94758.0,94756.0,0.72870447]
[1746407469425,0.01975835,94757.0,94756.0,0.72870447]
[1746407470199,0.02709932,94758.0,94756.0,0.72870447]
[1746407470374,0.02709932,94758.0,94756.0,0.72670447]
[1746407471182,0.02709932,94758.0,94756.0,0.72870447]
[1746407471712,0.01976155,94757.0,94756.0,0.32670447]
[1746407472261,0.01976155,94757.0,94756.0,0.72670447]
[1746407472950,0.01976155,94757.0,94756.0,0.72870447]
[1746407473150,0.02709932,94758.0,94756.0,0.72870447]
[1746407473519,0.01654613,94758.0,94757.0,0.22560705]
[1746407475259,0.01654613,94758.0,94757.0,0.27220705]
[1746407475536,0.01654613,94758.0,94757.0,0.58437067]
[1746407475692,0.01654613,94758.0,94757.0,0.98437067]
[1746407476298,0.01654613,94758.0,94757.0,0.98637067]
[1746407476798,0.01654613,94758.0,94757.0,0.98437067]
[1746407477017,0.01654613,94758.0,94757.0,0.98737067]
[1746407478169,0.0001105,94762.0,94761.0,0.21105729]
[1746407479315,0.0001105,94762.0,94761.0,0.61205729]
[1746407481222,0.01665553,94762.0,94761.0,0.61205729]
[1746407481380,0.01665553,94762.0,94761.0,0.92422091]
[1746407482909,0.01665553,94762.0,94761.0,0.71316362]
[1746407483421,0.01665553,94762.0,94761.0,0.81868391]
[1746407483574,0.01665553,94762.0,94761.0,0.71316362]
[1746407485946,0.01054907,94795.0,94788.0,0.22553802]
[1746407486084,0.22152419,94798.0,94788.0,0.31004894]
[1746407486284,0.01054952,94791.0,94788.0,0.31004894]
[1746407486493,0.01054919,94794.0,94788.0,0.31004894]
[1746407486694,0.02073616,94789.0,94788.0,0.31004894]
[1746407487119,0.02073616,94789.0,94788.0,0.71004894]
[1746407487326,0.02073616,94789.0,94788.0,1.01526178]
[1746407488557,0.001,94789.0,94788.0,1.01526178]
[1746407489264,0.001,94789.0,94788.0,1.01626178]
[1746407489470,0.001,94789.0,94788.0,0.92204611]
[1746407490230,0.001,94789.0,94788.0,0.71104894]
[1746407493419,0.001,94789.0,94788.0,0.69650809]
[1746407493624,0.26049494,94789.0,94788.0,0.29650809]
[1746407494391,0.2802311,94789.0,94788.0,0.29650809]
[1746407496000,0.29677196,94789.0,94788.0,0.29650809]
[1746407496918,0.2802311,94789.0,94788.0,0.27996721]
[1746407497997,0.26049494,94789.0,94788.0,0.27996721]
[1746407499856,0.27703531,94789.0,94788.0,0.27996721]
[1746407500371,0.22853531,94789.0,94788.0,0.27996721]
[1746407505696,0.34786127,94789.0,94788.0,0.27996721]
[1746407505921,0.58824215,94789.0,94788.0,0.27996721]
[1746407506079,0.57170178,94789.0,94788.0,0.27996721]
[1746407506283,0.66680178,94789.0,94764.0,0.25]
[1746407506484,0.21113973,94724.0,94702.0,0.09460828]
[1746407506689,0.61393136,94724.0,94702.0,0.09460828]
[1746407506893,0.62809056,94724.0,94723.0,0.0646815]
[1746407507523,0.67489056,94724.0,94723.0,0.0646815]
[1746407507722,0.63750607,94724.0,94723.0,0.0646815]
[1746407508222,0.67225723,94724.0,94723.0,0.0646815]
[1746407508654,0.69187599,94724.0,94723.0,0.0646815]
[1746407508855,0.79839628,94724.0,94723.0,0.0646815]
[1746407509274,0.81495111,94724.0,94723.0,0.0646815]
[1746407511134,0.55116202,94714.0,94702.0,0.09460828]
[1746407511352,0.21116648,94712.0,94702.0,0.09460828]
[1746407511533,0.00264054,94711.0,94710.0,0.07956312]
[1746407511726,0.08303322,94711.0,94710.0,0.07956312]
[1746407512367,0.01056033,94694.0,94673.0,0.00080172]
[1746407512571,0.34,94692.0,94691.0,0.00145684]
[1746407512903,0.39525093,94692.0,94691.0,0.00145684]
[1746407513202,0.431429,94692.0,94691.0,0.00145684]
[1746407515835,0.35961876,94692.0,94691.0,0.00145684]
[1746407516761,0.34,94692.0,94691.0,0.00145684]
[1746407520321,0.35655853,94692.0,94691.0,0.00145684]
[1746407523312,0.38314135,94692.0,94691.0,0.00145684]
[1746407523551,0.40256343,94692.0,94691.0,0.00145684]
[1746407524106,0.38314135,94692.0,94691.0,0.00145684]
[1746407524853,0.40256501,94692.0,94691.0,0.00145684]
[1746407525823,0.37598219,94692.0,94691.0,0.00145684]
[1746407526015,0.40256501,94692.0,94691.0,0.00145684]